[Event "DVM U12W 2021"]
[Site "Willingen"]
[Date "2022.08.14"]
[Round "3"]
[White "Mehner, Clara"]
[Black "Schuelke, Rosalie"]
[Result "1/2-1/2"]
[ECO "C01"]
[WhiteElo "1150"]
[BlackElo "1297"]
[Annotator "NA RC"]
[PlyCount "78"]
[EventDate "2022.08.12"]
[EventType "team-tourn"]
[EventRounds "7"]
[EventCountry "GER"]
[SourceTitle "playchess.com"]
[Source "ChessBase"]
[SourceQuality "1"]
[TimeControl "40/5400+30:1800+30"]

1. e4 {[%emt 0:00:01]} e6 {[%emt 0:00:06]} 2. d4 {[%emt 0:00:05]} d5 {[%emt 0:00:05]} 3. exd5 {[%emt 0:00:07]} exd5 {[%emt 0:00:09]} 4. Nf3 {[%emt 0:00:09]} Nf6 {[%emt 0:00:08]} 5. Bd3 {[%emt 0:00:09]} Bd6 {[%emt 0:00:09]} 6. O-O {[%emt 0:00:10]} O-O {[%emt 0:00:08]} 7. Bg5 {[%emt 0:00:18]} Bg4 {[%emt 0:00:39]} 8. Nbd2 {[%emt 0:00:47]} Nbd7 {[%emt 0:00:49]} 9. c3 {[%emt 0:00:49]} c6 {[%emt 0:01:08]} 10. Qc2 {[%emt 0:01:15]} Qc7 {[%emt 0:00:09]} 11. Rfe1 {[%emt 0:01:39]} Rfe8 {[%emt 0:02:26]} 12. h3 {[%emt 0:01:15]} Bh5 {[%emt 0:03:21]} 13. b3 {[%emt 0:06:30]} c5 {[%emt 0:05:42]} 14. c4 {[%emt 0:02:36]} a6 {[%emt 0:09:30]} 15. cxd5 {[%emt 0:02:08]} cxd4 {[%emt 0:02:40]} 16. Qxc7 {[%emt 0:02:20]} Bxc7 {[%emt 0:00:22]} 17. Nxd4 {[%emt 0:02:02]} Be5 {[%emt 0:05:08]} 18. Nf5 {[%emt 0:09:26]} Bxa1 {[%emt 0:01:03]} 19. Rxa1 {[%emt 0:00:16]} Nxd5 {[%emt 0:07:57]} 20. Nd6 {[%emt 0:03:13]} Re6 {[%emt 0:02:30]} 21. Nxb7 {[%emt 0:05:21]} Rae8 {[%emt 0:04:21]} 22. Bc4 {[%emt 0:04:13]} Re1+ {[%emt 0:01:58]} 23. Rxe1 {[%emt 0:04:58]} Rxe1+ {[%emt 0:00:07]} 24. Kh2 {[%emt 0:00:23]} N7f6 {[%emt 0:03:03]} 25. Bxa6 {[%emt 0:02:58]} Be2 {[%emt 0:01:53]} 26. Nc5 {[%emt 0:04:18]} Bxa6 {[%emt 0:00:40]} 27. Nxa6 {[%emt 0:00:21]} Re6 {[%emt 0:01:18]} 28. Nc5 {[%emt 0:03:37]} Rc6 {[%emt 0:03:21]} 29. Nd3 {[%emt 0:03:56]} h6 {[%emt 0:03:21]} 30. Bxf6 {[%emt 0:02:14]} Nxf6 {[%emt 0:00:59]} 31. Nc4 {[%emt 0:00:38]} Nd5 {[%emt 0:01:53]} 32. a4 {[%emt 0:03:16]} f6 {[%emt 0:02:38]} 33. Kg3 {[%emt 0:02:26]} Kf7 {[%emt 0:00:21]} 34. Kf3 {[%emt 0:00:38]} Ke6 {[%emt 0:01:03]} 35. Ke4 {[%emt 0:01:25]} Nc3+ {[%emt 0:02:05]} 36. Kd4 {[%emt 0:00:39]} Ne2+ {[%emt 0:02:23]} 37. Ke4 {[%emt 0:00:37]} Nc3+ {[%emt 0:01:09]} 38. Kd4 {[%emt 0:00:16]} Ne2+ {[%emt 0:00:20]} 39. Ke4 {[%emt 0:01:01]} Nc3+ {[%emt 0:00:19]} 1/2-1/2

[Event "DVM U12W 2021"]
[Site "Willingen"]
[Date "2022.08.14"]
[Round "3"]
[White "Greive, Greta"]
[Black "Reetz, Shaila"]
[Result "1-0"]
[ECO "C42"]
[WhiteElo "1136"]
[BlackElo "837"]
[Annotator "NA RC"]
[PlyCount "115"]
[EventDate "2022.08.12"]
[EventType "team-tourn"]
[EventRounds "7"]
[EventCountry "GER"]
[SourceTitle "playchess.com"]
[Source "ChessBase"]
[SourceQuality "1"]
[TimeControl "40/5400+30:1800+30"]

1. e4 {[%emt 0:00:04]} e5 {[%emt 0:00:08]} 2. Nf3 {[%emt 0:00:06]} Nf6 {[%emt 0:00:07]} 3. Nxe5 {[%emt 0:00:09]} Nxe4 {[%emt 0:00:29]} 4. Qe2 {[%emt 0:00:08]} d5 {[%emt 0:00:49]} 5. f3 {[%emt 0:00:23]} Bf5 {[%emt 0:00:29]} 6. fxe4 {[%emt 0:00:28]} dxe4 {[%emt 0:00:13]} 7. Nc3 {[%emt 0:02:55]} Bd6 {[%emt 0:00:50]} 8. Ng4 {[%emt 0:01:10]} O-O {[%emt 0:02:13]} 9. Nf2 {[%emt 0:00:56]} Nd7 {[%emt 0:00:52]} 10. b3 {[%emt 0:03:29]} Nf6 {[%emt 0:00:45]} 11. Bb2 {[%emt 0:00:39]} Qe8 {[%emt 0:01:21]} 12. O-O-O {[%emt 0:01:17]} Qe7 {[%emt 0:00:36]} 13. Nb5 {[%emt 0:01:28]} Rfe8 {[%emt 0:01:04]} 14. Nxd6 {[%emt 0:00:42]} cxd6 {[%emt 0:00:16]} 15. Qb5 {[%emt 0:04:31]} d5 {[%emt 0:01:51]} 16. Bxf6 {[%emt 0:01:23]} Qxf6 {[%emt 0:00:31]} 17. Kb1 {[%emt 0:01:06]} Rac8 {[%emt 0:01:38]} 18. g4 {[%emt 0:02:56]} Bg6 {[%emt 0:00:33]} 19. h4 {[%emt 0:00:21]} e3 {[%emt 0:00:42]} 20. Nd3 {[%emt 0:01:01]} a6 {[%emt 0:02:46]} 21. Qxd5 {[%emt 0:00:31]} Rc6 {[%emt 0:01:06]} 22. Bg2 {[%emt 0:02:21]} e2 {[%emt 0:01:10]} 23. Rde1 {[%emt 0:01:29]} Bxd3 {[%emt 0:00:39]} 24. Qxd3 {[%emt 0:00:42]} Rc5 {[%emt 0:00:53]} 25. Rxe2 {[%emt 0:01:16]} Rd8 {[%emt 0:00:58]} 26. Qf3 {[%emt 0:01:43]} Qb6 {[%emt 0:01:27]} 27. Rhe1 {[%emt 0:01:46]} Rcc8 {[%emt 0:00:45]} 28. Qxb7 {[%emt 0:03:01]} Qc5 {[%emt 0:01:31]} 29. Qe4 {[%emt 0:02:38]} Qf8 {[%emt 0:01:18]} 30. h5 {[%emt 0:01:35]} a5 {[%emt 0:02:18]} 31. h6 {[%emt 0:01:09]} g6 {[%emt 0:00:28]} 32. g5 {[%emt 0:06:36]} Rb8 {[%emt 0:01:02]} 33. Rf1 {[%emt 0:06:34]} Rd7 {[%emt 0:00:38]} 34. Qc6 {[%emt 0:01:12]} Rbd8 {[%emt 0:00:46]} 35. Rd1 {[%emt 0:01:58]} Re7 {[%emt 0:00:45]} 36. Rxe7 {[%emt 0:01:13]} Qxe7 {[%emt 0:00:21]} 37. Qe4 {[%emt 0:02:04]} Qf8 {[%emt 0:01:19]} 38. Qa4 {[%emt 0:01:18]} Qc5 {[%emt 0:01:04]} 39. Re1 {[%emt 0:00:56]} Qf8 {[%emt 0:00:20]} 40. Qc4 {[%emt 0:02:02]} Rc8 {[%emt 0:00:28]} 41. Qd4 {[%emt 0:31:14]} Rd8 {[%emt 0:30:24]} 42. Qg7+ {[%emt 0:00:24]} Qxg7 {[%emt 0:00:29]} 43. hxg7 {[%emt 0:00:25]} Rb8 {[%emt 0:00:46]} 44. Rf1 {[%emt 0:00:55]} a4 {[%emt 0:00:42]} 45. Bd5 {[%emt 0:00:16]} Rb6 {[%emt 0:01:00]} 46. Rxf7 {[%emt 0:00:36]} Rd6 {[%emt 0:01:26]} 47. Rd7+ {[%emt 0:00:38]} Rxd5 {[%emt 0:00:26]} 48. Rxd5 {[%emt 0:00:12]} axb3 {[%emt 0:00:19]} 49. axb3 {[%emt 0:00:10]} Kxg7 {[%emt 0:00:21]} 50. b4 {[%emt 0:00:22]} h6 {[%emt 0:00:36]} 51. gxh6+ {[%emt 0:00:17]} Kxh6 {[%emt 0:00:12]} 52. b5 {[%emt 0:00:58]} g5 {[%emt 0:00:32]} 53. b6 {[%emt 0:00:14]} g4 {[%emt 0:00:15]} 54. b7 {[%emt 0:00:19]} g3 {[%emt 0:00:10]} 55. b8=Q {[%emt 0:00:13]} g2 {[%emt 0:00:06]} 56. Qb6+ {[%emt 0:00:12]} Kg7 {[%emt 0:01:33]} 57. Rd7+ {[%emt 0:00:12]} Kf8 {[%emt 0:00:14]} 58. Qb8# {[%emt 0:00:12]} 1-0

[Event "DVM U12W 2021"]
[Site "Willingen"]
[Date "2022.08.14"]
[Round "3"]
[White "Henzel, Leonie"]
[Black "Mauhs, Helena"]
[Result "1/2-1/2"]
[ECO "D02"]
[WhiteElo "1134"]
[BlackElo "857"]
[Annotator "NA RC"]
[PlyCount "100"]
[EventDate "2022.08.12"]
[EventType "team-tourn"]
[EventRounds "7"]
[EventCountry "GER"]
[SourceTitle "playchess.com"]
[Source "ChessBase"]
[SourceQuality "1"]
[TimeControl "40/5400+30:1800+30"]

1. d4 {[%emt 0:00:04]} d5 {[%emt 0:00:07]} 2. Nf3 {[%emt 0:00:07]} Nc6 {[%emt 0:00:12]} 3. Bf4 {[%emt 0:00:19]} Bf5 {[%emt 0:00:16]} 4. e3 {[%emt 0:00:39]} Nf6 {[%emt 0:00:29]} 5. c3 {[%emt 0:00:30]} e6 {[%emt 0:00:21]} 6. Bd3 {[%emt 0:01:56]} Bd6 {[%emt 0:02:32]} 7. Ne5 {[%emt 0:02:30]} O-O {[%emt 0:01:54]} 8. Nxc6 {[%emt 0:04:46]} bxc6 {[%emt 0:00:57]} 9. Bxd6 {[%emt 0:00:57]} Qxd6 {[%emt 0:00:34]} 10. Bxf5 {[%emt 0:01:15]} exf5 {[%emt 0:00:18]} 11. Nd2 {[%emt 0:01:56]} Rab8 {[%emt 0:01:14]} 12. Rb1 {[%emt 0:02:02]} Ne4 {[%emt 0:01:56]} 13. Nxe4 {[%emt 0:01:54]} dxe4 {[%emt 0:00:26]} 14. h4 {[%emt 0:02:31]} Qd5 {[%emt 0:00:28]} 15. b3 {[%emt 0:03:02]} c5 {[%emt 0:00:46]} 16. Rh3 {[%emt 0:00:45]} cxd4 {[%emt 0:01:12]} 17. c4 {[%emt 0:01:32]} Qa5+ {[%emt 0:00:41]} 18. Qd2 {[%emt 0:01:33]} Qxd2+ {[%emt 0:00:56]} 19. Kxd2 {[%emt 0:00:56]} dxe3+ {[%emt 0:00:55]} 20. Kxe3 {[%emt 0:00:17]} Rbd8 {[%emt 0:00:26]} 21. Ke2 {[%emt 0:00:39]} Rd4 {[%emt 0:01:02]} 22. Rb2 {[%emt 0:00:53]} f4 {[%emt 0:02:17]} 23. g3 {[%emt 0:05:31]} f3+ {[%emt 0:00:31]} 24. Ke3 {[%emt 0:00:35]} Rfd8 {[%emt 0:00:29]} 25. Rh1 {[%emt 0:00:23]} Rd3+ {[%emt 0:00:25]} 26. Kxe4 {[%emt 0:04:10]} R8d4+ {[%emt 0:00:50]} 27. Kf5 {[%emt 0:00:25]} g6+ {[%emt 0:00:48]} 28. Ke5 {[%emt 0:01:49]} Kg7 {[%emt 0:00:51]} 29. Re1 {[%emt 0:02:17]} f6+ {[%emt 0:00:23]} 30. Ke6 {[%emt 0:00:42]} Rd8 {[%emt 0:01:17]} 31. Ke7 {[%emt 0:02:49]} R3d7+ {[%emt 0:01:11]} 32. Ke6 {[%emt 0:01:30]} Rd6+ {[%emt 0:01:05]} 33. Ke7 {[%emt 0:00:59]} f5 {[%emt 0:00:16]} 34. Rbb1 {[%emt 0:01:07]} R6d7+ {[%emt 0:00:15]} 35. Ke6 {[%emt 0:00:35]} Kf8 {[%emt 0:00:27]} 36. Kf6 {[%emt 0:02:31]} Rd6+ {[%emt 0:01:19]} 37. Re6 {[%emt 0:01:37]} R6d7 {[%emt 0:00:53]} 38. Rb2 {[%emt 0:04:31]} Rf7+ {[%emt 0:00:35]} 39. Ke5 {[%emt 0:01:31]} f4 {[%emt 0:01:43]} 40. gxf4 {[%emt 0:01:40]} Rf5+ {[%emt 0:00:24]} 41. Ke4 {[%emt 0:31:10]} Kf7 {[%emt 0:30:45]} 42. Re5 {[%emt 0:00:57]} Rf6 {[%emt 0:00:46]} 43. Kxf3 {[%emt 0:00:50]} Rd3+ {[%emt 0:00:23]} 44. Re3 {[%emt 0:02:38]} Rd4 {[%emt 0:00:43]} 45. Re4 {[%emt 0:01:57]} Rd3+ {[%emt 0:00:16]} 46. Kg2 {[%emt 0:00:39]} Rf5 {[%emt 0:05:07]} 47. Rbe2 {[%emt 0:01:26]} Rh5 {[%emt 0:00:40]} 48. Re7+ {[%emt 0:04:52]} Kf6 {[%emt 0:00:50]} 49. Rxc7 {[%emt 0:00:49]} Rxh4 {[%emt 0:00:24]} 50. Rc6+ {[%emt 0:04:48]} Kf5 {[%emt 0:02:35]} 1/2-1/2

[Event "DVM U12W 2021"]
[Site "Willingen"]
[Date "2022.08.14"]
[Round "3"]
[White "Abram, Kristina-Maria"]
[Black "Schube, Theresa"]
[Result "1-0"]
[ECO "D02"]
[WhiteElo "1128"]
[BlackElo "1162"]
[Annotator "NA RC"]
[PlyCount "59"]
[EventDate "2022.08.12"]
[EventType "team-tourn"]
[EventRounds "7"]
[EventCountry "GER"]
[SourceTitle "playchess.com"]
[Source "ChessBase"]
[SourceQuality "1"]
[TimeControl "40/5400+30:1800+30"]

1. d4 {[%emt 0:00:44]} d5 {[%emt 0:00:20]} 2. Nf3 {[%emt 0:00:25]} Bf5 {[%emt 0:02:02]} 3. b3 {[%emt 0:00:54]} Nc6 {[%emt 0:01:46]} 4. Bb2 {[%emt 0:00:11]} e6 {[%emt 0:01:27]} 5. e3 {[%emt 0:00:43]} a6 {[%emt 0:00:41]} 6. Bd3 {[%emt 0:00:42]} Bg6 {[%emt 0:00:43]} 7. Nbd2 {[%emt 0:01:41]} Nf6 {[%emt 0:00:48]} 8. O-O {[%emt 0:03:26]} Nb4 {[%emt 0:05:34]} 9. Ne5 {[%emt 0:03:39]} Ne4 {[%emt 0:07:12]} 10. Bxe4 {[%emt 0:01:05]} Bxe4 {[%emt 0:00:43]} 11. Nxe4 {[%emt 0:00:23]} dxe4 {[%emt 0:00:22]} 12. a3 {[%emt 0:00:41]} Nd5 {[%emt 0:00:44]} 13. c4 {[%emt 0:00:31]} Ne7 {[%emt 0:03:50]} 14. f3 {[%emt 0:03:24]} f6 {[%emt 0:01:57]} 15. Ng4 {[%emt 0:00:13]} h5 {[%emt 0:00:24]} 16. Nf2 {[%emt 0:00:22]} exf3 {[%emt 0:04:18]} 17. Qxf3 {[%emt 0:00:29]} c6 {[%emt 0:00:36]} 18. Rad1 {[%emt 0:02:40]} Qc7 {[%emt 0:01:38]} 19. e4 {[%emt 0:01:57]} O-O-O {[%emt 0:01:26]} 20. d5 {[%emt 0:01:03]} e5 {[%emt 0:01:17]} 21. b4 {[%emt 0:01:38]} c5 {[%emt 0:06:21]} 22. bxc5 {[%emt 0:02:41]} Qxc5 {[%emt 0:00:26]} 23. Kh1 {[%emt 0:02:35]} Kb8 {[%emt 0:00:37]} 24. Qb3 {[%emt 0:00:46]} Nc8 {[%emt 0:01:03]} 25. Nd3 {[%emt 0:00:38]} Qb6 {[%emt 0:01:08]} 26. Qa4 {[%emt 0:01:41]} h4 {[%emt 0:04:35]} 27. Rb1 {[%emt 0:01:53]} Qe3 {[%emt 0:00:53]} 28. Nb4 {[%emt 0:02:34]} Bxb4 {[%emt 0:01:16]} 29. Qxb4 {[%emt 0:00:15]} h3 {[%emt 0:01:11]} 30. Bxe5+ {[%emt 0:00:29]} 1-0

[Event "DVM U12W 2021"]
[Site "Willingen"]
[Date "2022.08.14"]
[Round "3"]
[White "Belkina, Elisabeth"]
[Black "Mo, Keyou"]
[Result "0-1"]
[ECO "D02"]
[WhiteElo "1126"]
[BlackElo "1264"]
[Annotator "NA RC"]
[PlyCount "62"]
[EventDate "2022.08.12"]
[EventType "team-tourn"]
[EventRounds "7"]
[EventCountry "GER"]
[SourceTitle "playchess.com"]
[Source "ChessBase"]
[SourceQuality "1"]
[TimeControl "40/5400+30:1800+30"]

1. d4 {[%emt 0:00:09]} d5 {[%emt 0:00:00]} 2. Nf3 {[%emt 0:00:14]} Nf6 {[%emt 0:00:00]} 3. Bf4 {[%emt 0:00:24]} Bf5 {[%emt 0:00:11]} 4. e3 {[%emt 0:00:16]} e6 {[%emt 0:01:39]} 5. c4 {[%emt 0:00:25]} Bxb1 {[%emt 0:00:30]} 6. Qxb1 {[%emt 0:00:21]} Bb4+ {[%emt 0:00:28]} 7. Nd2 {[%emt 0:00:13]} Ne4 {[%emt 0:00:55]} 8. Qc2 {[%emt 0:01:15]} Bxd2+ {[%emt 0:00:28]} 9. Kd1 {[%emt 0:00:27]} Nxf2+ {[%emt 0:00:22]} 10. Ke2 {[%emt 0:00:27]} Nxh1 {[%emt 0:00:03]} 11. Kxd2 {[%emt 0:00:16]} Nf2 {[%emt 0:02:52]} 12. Ke1 {[%emt 0:00:32]} Ne4 {[%emt 0:02:40]} 13. g3 {[%emt 0:03:08]} Nc6 {[%emt 0:07:58]} 14. Bg2 {[%emt 0:02:48]} Nf6 {[%emt 0:16:41]} 15. Rd1 {[%emt 0:06:53]} h6 {[%emt 0:04:21]} 16. cxd5 {[%emt 0:02:11]} exd5 {[%emt 0:08:47]} 17. e4 {[%emt 0:01:25]} O-O {[%emt 0:09:58]} 18. e5 {[%emt 0:01:44]} Re8 {[%emt 0:05:41]} 19. Kf1 {[%emt 0:01:46]} Nd7 {[%emt 0:03:33]} 20. Bxd5 {[%emt 0:01:04]} Nb4 {[%emt 0:00:50]} 21. Qc4 {[%emt 0:00:44]} Nxd5 {[%emt 0:00:26]} 22. Qxd5 {[%emt 0:00:18]} c6 {[%emt 0:02:02]} 23. Qf3 {[%emt 0:01:47]} Qb6 {[%emt 0:04:43]} 24. Qe2 {[%emt 0:02:04]} Nf6 {[%emt 0:08:41]} 25. Be3 {[%emt 0:01:39]} Nd5 {[%emt 0:01:29]} 26. Rd2 {[%emt 0:00:40]} Nxe3+ {[%emt 0:00:14]} 27. Qxe3 {[%emt 0:00:18]} Qa6+ {[%emt 0:00:16]} 28. Qe2 {[%emt 0:00:20]} Qxa2 {[%emt 0:00:45]} 29. b4 {[%emt 0:00:16]} Qb1+ {[%emt 0:01:10]} 30. Qe1 {[%emt 0:00:12]} Qxb4 {[%emt 0:01:02]} 31. Qe3 {[%emt 0:00:29]} Rad8 0-1

[Event "DVM U12W 2021"]
[Site "Willingen"]
[Date "2022.08.14"]
[Round "3"]
[White "Gerlach, Lorena"]
[Black "Ramakrishnan, Veda"]
[Result "1/2-1/2"]
[ECO "D02"]
[WhiteElo "1120"]
[BlackElo "1333"]
[Annotator "NA RC"]
[PlyCount "78"]
[EventDate "2022.08.12"]
[EventType "team-tourn"]
[EventRounds "7"]
[EventCountry "GER"]
[SourceTitle "playchess.com"]
[Source "ChessBase"]
[SourceQuality "1"]
[TimeControl "40/5400+30:1800+30"]

1. d4 {[%emt 0:00:04]} d5 {[%emt 0:00:07]} 2. Nf3 {[%emt 0:00:06]} Nf6 {[%emt 0:00:09]} 3. Bf4 {[%emt 0:00:08]} Bf5 {[%emt 0:00:22]} 4. e3 {[%emt 0:00:07]} e6 {[%emt 0:00:26]} 5. c3 {[%emt 0:00:06]} Bd6 {[%emt 0:00:24]} 6. Bg3 {[%emt 0:00:13]} c6 {[%emt 0:00:46]} 7. Be2 {[%emt 0:02:54]} Bxg3 {[%emt 0:00:50]} 8. hxg3 {[%emt 0:00:16]} Nbd7 {[%emt 0:00:21]} 9. Bd3 {[%emt 0:05:36]} Bxd3 {[%emt 0:01:13]} 10. Qxd3 {[%emt 0:00:08]} h6 {[%emt 0:01:49]} 11. Nbd2 {[%emt 0:01:10]} Qb6 {[%emt 0:01:31]} 12. O-O-O {[%emt 0:01:24]} O-O-O {[%emt 0:00:50]} 13. Kb1 {[%emt 0:01:26]} c5 {[%emt 0:04:13]} 14. dxc5 {[%emt 0:02:55]} Nxc5 {[%emt 0:03:01]} 15. Qd4 {[%emt 0:00:49]} Nce4 {[%emt 0:04:53]} 16. Qxb6 {[%emt 0:02:34]} axb6 {[%emt 0:00:21]} 17. Nxe4 {[%emt 0:03:27]} Nxe4 {[%emt 0:00:09]} 18. Rhf1 {[%emt 0:00:18]} Kc7 {[%emt 0:01:21]} 19. Ne5 {[%emt 0:00:35]} Rhf8 {[%emt 0:01:14]} 20. f3 {[%emt 0:00:16]} Nxg3 {[%emt 0:01:47]} 21. Rf2 {[%emt 0:01:59]} f6 {[%emt 0:02:03]} 22. Ng6 {[%emt 0:01:45]} Rf7 {[%emt 0:02:26]} 23. Nf4 {[%emt 0:02:20]} Re8 {[%emt 0:04:10]} 24. Rc2 {[%emt 0:02:00]} b5 {[%emt 0:04:12]} 25. b3 {[%emt 0:02:27]} Rd7 {[%emt 0:04:19]} 26. c4 {[%emt 0:05:12]} dxc4 {[%emt 0:00:39]} 27. Rxd7+ {[%emt 0:00:11]} Kxd7 {[%emt 0:00:08]} 28. bxc4 {[%emt 0:00:20]} bxc4 {[%emt 0:00:15]} 29. Rxc4 {[%emt 0:00:11]} Nf5 {[%emt 0:01:57]} 30. e4 {[%emt 0:05:39]} Nd6 {[%emt 0:02:22]} 31. Rc3 {[%emt 0:02:10]} g5 {[%emt 0:00:58]} 32. Nh5 {[%emt 0:01:46]} Rf8 {[%emt 0:01:14]} 33. Kb2 {[%emt 0:01:57]} f5 {[%emt 0:03:16]} 34. e5 {[%emt 0:01:28]} Nc8 {[%emt 0:01:50]} 35. Nf6+ {[%emt 0:01:22]} Kd8 {[%emt 0:00:41]} 36. Rd3+ {[%emt 0:01:30]} Kc7 {[%emt 0:00:25]} 37. Rc3+ {[%emt 0:00:27]} Kd8 {[%emt 0:00:29]} 38. Rd3+ {[%emt 0:06:55]} Kc7 {[%emt 0:00:09]} 39. Rc3+ {[%emt 0:01:31]} Kd8 {[%emt 0:00:11]} 1/2-1/2

[Event "DVM U12W 2021"]
[Site "Willingen"]
[Date "2022.08.14"]
[Round "3"]
[White "Glotz, Diana"]
[Black "Brandt, Clara"]
[Result "1/2-1/2"]
[ECO "C07"]
[WhiteElo "1116"]
[BlackElo "1161"]
[Annotator "NA COMBH RC"]
[PlyCount "55"]
[EventDate "2022.08.12"]
[EventType "team-tourn"]
[EventRounds "7"]
[EventCountry "GER"]
[SourceTitle "playchess.com"]
[Source "ChessBase"]
[SourceQuality "1"]
[TimeControl "40/5400+30:1800+30"]

1. e4 {[%emt 0:00:12]} e6 {[%emt 0:00:00]} 2. d4 {[%emt 0:00:06]} d5 {[%emt 0:00:00]} 3. Nd2 {[%emt 0:00:45]} c5 {[%emt 0:00:19]} 4. c3 {[%emt 0:01:10]} Nc6 {[%emt 0:05:36]} 5. Ne2 {[%emt 0:03:29]} Qb6 {[%emt 0:08:18]} 6. exd5 {[%emt 0:02:25]} exd5 {[%emt 0:00:51]} 7. Nf4 {[%emt 0:03:18]} Nf6 {[%emt 0:02:51]} 8. Nf3 {[%emt 0:02:24]} cxd4 {[%emt 0:04:44]} 9. cxd4 {[%emt 0:03:19]} Bd6 {[%emt 0:05:53]} 10. Qe2+ {[%emt 0:05:21]} Be7 {[%emt 0:07:17]} 11. Be3 {[%emt 0:05:11]} O-O {[%emt 0:02:36]} 12. a3 {[%emt 0:04:02]} Re8 {[%emt 0:01:34]} 13. Qd1 {[%emt 0:05:16]} Qxb2 {[%emt 0:09:21]} 14. Nd3 {[%emt 0:05:41]} Qb6 {[%emt 0:04:30]} 15. Be2 {[%emt 0:06:06]} Ne4 {[%emt 0:08:44]} 16. Qc2 {[%emt 0:05:56]} Bf6 {[%emt 0:08:16]} 17. Nde5 {[%emt 0:11:28]} Be6 {[%emt 0:02:00]} 18. O-O {[%emt 0:02:13]} Rac8 {[%emt 0:03:45]} 19. Qd3 {[%emt 0:04:59]} Bf5 {[%emt 0:05:52]} 20. g4 {[%emt 0:03:59]} Be6 {[%emt 0:01:56]} 21. Rab1 {[%emt 0:00:43]} Qc7 {[%emt 0:01:16]} 22. Bf4 {[%emt 0:00:51]} g5 {[%emt 0:00:51]} 23. Bg3 {[%emt 0:00:40]} Nxg3 {[%emt 0:00:14]} 24. hxg3 {[%emt 0:00:54]} Bxe5 {[%emt 0:00:25]} 25. Nxe5 {[%emt 0:00:16]} Nxe5 {[%emt 0:00:07]} 26. dxe5 {[%emt 0:03:49]} Qxe5 {[%emt 0:01:14]} 27. Rxb7 {[%emt 0:00:39]} Ra8 {[%emt 0:02:09] Check Result:-0.79} 28. f4 1/2-1/2

[Event "DVM U12W 2021"]
[Site "Willingen"]
[Date "2022.08.14"]
[Round "3"]
[White "Fruth, Julia"]
[Black "Peglau, Lorena"]
[Result "1-0"]
[ECO "C01"]
[WhiteElo "1037"]
[BlackElo "1207"]
[Annotator "NA RC"]
[PlyCount "127"]
[EventDate "2022.08.12"]
[EventType "team-tourn"]
[EventRounds "7"]
[EventCountry "GER"]
[SourceTitle "playchess.com"]
[Source "ChessBase"]
[SourceQuality "1"]
[TimeControl "40/5400+30:1800+30"]

1. e4 {[%emt 0:00:02]} e6 {[%emt 0:00:04]} 2. d4 {[%emt 0:00:14]} d5 {[%emt 0:00:05]} 3. Bd3 {[%emt 0:00:05]} dxe4 {[%emt 0:00:21]} 4. Bxe4 {[%emt 0:00:11]} Nf6 {[%emt 0:00:15]} 5. Bf3 {[%emt 0:00:13]} c5 {[%emt 0:00:41]} 6. Ne2 {[%emt 0:10:07]} Be7 {[%emt 0:01:57]} 7. dxc5 {[%emt 0:03:33]} Qxd1+ {[%emt 0:00:22]} 8. Kxd1 {[%emt 0:00:14]} Bxc5 {[%emt 0:00:08]} 9. c3 {[%emt 0:01:53]} Bxf2 {[%emt 0:00:48]} 10. Kc2 {[%emt 0:00:44]} O-O {[%emt 0:00:46]} 11. Bf4 {[%emt 0:01:39]} Nbd7 {[%emt 0:01:55]} 12. Nd2 {[%emt 0:04:02]} a6 {[%emt 0:02:24]} 13. h4 {[%emt 0:07:05]} Rd8 {[%emt 0:04:06]} 14. Bc7 {[%emt 0:05:38]} Re8 {[%emt 0:01:06]} 15. Nc4 {[%emt 0:02:22]} Ra7 {[%emt 0:02:10]} 16. Nd6 {[%emt 0:02:04]} Rf8 {[%emt 0:00:49]} 17. Rh3 {[%emt 0:09:30]} b6 {[%emt 0:04:38]} 18. Nxc8 {[%emt 0:00:28]} Rxc8 {[%emt 0:00:33]} 19. Bg3 {[%emt 0:01:17]} Be3 {[%emt 0:01:15]} 20. Bf4 {[%emt 0:03:55]} Bc5 {[%emt 0:01:48]} 21. h5 {[%emt 0:03:50]} b5 {[%emt 0:00:55]} 22. g4 {[%emt 0:02:48]} Kf8 {[%emt 0:01:23]} 23. g5 {[%emt 0:02:24]} Ng8 {[%emt 0:00:20]} 24. Be4 {[%emt 0:04:10]} e5 {[%emt 0:00:56]} 25. Bd2 {[%emt 0:00:43]} b4 {[%emt 0:01:02]} 26. Bxh7 {[%emt 0:02:17]} bxc3 {[%emt 0:01:36]} 27. Rxc3 {[%emt 0:01:13]} Rac7 {[%emt 0:03:01]} 28. Bf5 {[%emt 0:02:44]} Bd4 {[%emt 0:00:56]} 29. Bxd7 {[%emt 0:01:12]} Bxc3 {[%emt 0:03:10]} 30. Bxc8 {[%emt 0:00:16]} Bxd2+ {[%emt 0:00:16]} 31. Kxd2 {[%emt 0:00:19]} Rxc8 {[%emt 0:00:13]} 32. Rh1 {[%emt 0:01:26]} Rc6 {[%emt 0:00:21]} 33. Rf1 {[%emt 0:00:57]} Ke7 {[%emt 0:02:19]} 34. Re1 {[%emt 0:05:40]} Rd6+ {[%emt 0:01:09]} 35. Kc3 {[%emt 0:01:31]} Ke6 {[%emt 0:00:28]} 36. Rf1 {[%emt 0:03:32]} Rd5 {[%emt 0:04:11]} 37. Kc4 {[%emt 0:02:46]} Ra5 {[%emt 0:00:58]} 38. Nc3 {[%emt 0:01:46]} e4 {[%emt 0:03:23]} 39. Nxe4 {[%emt 0:04:10]} Rxa2 {[%emt 0:00:27]} 40. Nc5+ {[%emt 0:01:18]} Ke7 {[%emt 0:00:28]} 41. Rf2 {[%emt 0:31:06]} Ra1 {[%emt 0:32:03]} 42. Rh2 {[%emt 0:00:33]} Rg1 {[%emt 0:02:44]} 43. h6 {[%emt 0:00:54]} Rg4+ {[%emt 0:00:57]} 44. Kb3 {[%emt 0:01:37]} gxh6 {[%emt 0:05:02]} 45. gxh6 {[%emt 0:01:01]} Nxh6 {[%emt 0:00:31]} 46. Rxh6 {[%emt 0:00:09]} f5 {[%emt 0:00:10]} 47. Rxa6 {[%emt 0:01:02]} f4 {[%emt 0:00:12]} 48. Ra1 {[%emt 0:00:16]} f3 {[%emt 0:00:16]} 49. Rf1 {[%emt 0:00:12]} Rg3 {[%emt 0:00:15]} 50. Ne4 {[%emt 0:01:06]} Rg4 {[%emt 0:00:22]} 51. Nd2 {[%emt 0:00:28]} Rg3 {[%emt 0:01:29]} 52. Rxf3 {[%emt 0:00:11]} Rxf3+ {[%emt 0:00:06]} 53. Nxf3 {[%emt 0:00:06]} Kd6 {[%emt 0:00:06]} 54. Ka4 {[%emt 0:00:08]} Kc7 {[%emt 0:00:07]} 55. Ka5 {[%emt 0:00:18]} Kb7 {[%emt 0:00:35]} 56. Kb5 {[%emt 0:00:16]} Kb8 {[%emt 0:00:07]} 57. Kb6 {[%emt 0:00:20]} Ka8 {[%emt 0:00:31]} 58. b4 {[%emt 0:00:26]} Kb8 {[%emt 0:00:06]} 59. b5 {[%emt 0:00:17]} Ka8 {[%emt 0:00:07]} 60. Kc7 {[%emt 0:00:14]} Ka7 {[%emt 0:00:15]} 61. b6+ {[%emt 0:00:14]} Ka8 {[%emt 0:00:16]} 62. b7+ {[%emt 0:00:55]} Ka7 {[%emt 0:00:01]} 63. b8=Q+ {[%emt 0:00:20]} Ka6 {[%emt 0:00:01]} 64. Qb6# {[%emt 0:00:17]} 1-0